[Event "*** Titled Tuesday Blitz"]
[Site "Chess.com"]
[Date "2020.10.27"]
[Round "11"]
[White "barbara25"]
[Black "bsnsun"]
[Result "0-1"]
[WhiteElo "2289"]
[BlackElo "2469"]
[TimeControl "180+1"]
[EndTime "12:05:20 PDT"]
[Termination "bsnsun won by checkmate"]

1. e4 {[%clk 0:03:00.9]} 1... c5 {[%clk 0:02:42.1]} 2. Nf3 {[%clk 0:02:54.1]}
2... d6 {[%clk 0:02:42.2]} 3. d4 {[%clk 0:02:47.6]} 3... cxd4 {[%clk 0:02:43.1]}
4. Nxd4 {[%clk 0:02:42.1]} 4... Nf6 {[%clk 0:02:44]} 5. Nc3 {[%clk 0:02:38.8]}
5... a6 {[%clk 0:02:43.9]} 6. f3 {[%clk 0:02:38.1]} 6... e5 {[%clk 0:02:43.2]}
7. Nb3 {[%clk 0:02:37.5]} 7... Be7 {[%clk 0:02:44.1]} 8. Be3 {[%clk 0:02:36.1]}
8... Nc6 {[%clk 0:02:39.7]} 9. Qd2 {[%clk 0:02:36.2]} 9... b5 {[%clk 0:02:39.7]}
10. O-O-O {[%clk 0:02:35.5]} 10... Qc7 {[%clk 0:02:38.4]} 11. g4 {[%clk
0:02:35.1]} 11... h6 {[%clk 0:02:30.9]} 12. h4 {[%clk 0:02:32.6]} 12... Be6
{[%clk 0:02:30]} 13. Kb1 {[%clk 0:02:31.6]} 13... Qb7 {[%clk 0:02:08.9]} 14. Bd3
{[%clk 0:02:29.9]} 14... g6 {[%clk 0:02:05.7]} 15. g5 {[%clk 0:02:29.6]} 15...
hxg5 {[%clk 0:02:05.4]} 16. hxg5 {[%clk 0:02:29.4]} 16... Nh5 {[%clk 0:02:05.5]}
17. f4 {[%clk 0:02:18.5]} 17... exf4 {[%clk 0:01:58.2]} 18. Bxf4 {[%clk
0:02:17.8]} 18... Ne5 {[%clk 0:01:58.1]} 19. Bxe5 {[%clk 0:02:12.4]} 19... dxe5
{[%clk 0:01:56.8]} 20. Nd5 {[%clk 0:02:12.5]} 20... Bxd5 {[%clk 0:01:43.5]} 21.
exd5 {[%clk 0:02:12.3]} 21... Qxd5 {[%clk 0:01:44]} 22. Qe3 {[%clk 0:02:09.7]}
22... Qe6 {[%clk 0:01:38]} 23. Be4 {[%clk 0:02:04.4]} 23... Rc8 {[%clk
0:01:35.1]} 24. Bd5 {[%clk 0:02:03.7]} 24... Qf5 {[%clk 0:01:26.8]} 25. Be4
{[%clk 0:02:03.7]} 25... Qxg5 {[%clk 0:01:25.9]} 26. Qb6 {[%clk 0:01:57.5]}
26... Qf6 {[%clk 0:01:13.2]} 27. Qb7 {[%clk 0:01:57.1]} 27... O-O {[%clk
0:01:07.4]} 28. Rdf1 {[%clk 0:01:55.6]} 28... Nf4 {[%clk 0:01:02.8]} 29. Qa7
{[%clk 0:01:44.8]} 29... Rc4 {[%clk 0:00:50.1]} 30. Qe3 {[%clk 0:01:39.8]} 30...
Qe6 {[%clk 0:00:43.7]} 31. Qf3 {[%clk 0:01:25]} 31... Rfc8 {[%clk 0:00:40.4]}
32. Nd2 {[%clk 0:01:18.2]} 32... R4c5 {[%clk 0:00:38.7]} 33. Qg3 {[%clk
0:01:15.9]} 33... Bf8 {[%clk 0:00:26.4]} 34. Nf3 {[%clk 0:01:10.2]} 34... f5
{[%clk 0:00:19.1]} 35. Ng5 {[%clk 0:01:07.3]} 35... Qf6 {[%clk 0:00:19.3]} 36.
Qh4 {[%clk 0:00:59.1]} 36... Bg7 {[%clk 0:00:19.5]} 37. Qh7+ {[%clk 0:00:57.7]}
37... Kf8 {[%clk 0:00:19.9]} 38. Qh4 {[%clk 0:00:53.4]} 38... Kg8 {[%clk
0:00:17.5]} 39. Bd3 {[%clk 0:00:50.6]} 39... e4 {[%clk 0:00:17]} 40. Bxe4 {[%clk
0:00:43.7]} 40... fxe4 {[%clk 0:00:16.7]} 41. Rxf4 {[%clk 0:00:43.5]} 41...
Qxb2# {[%clk 0:00:16.5]} 0-1

[Event "*** Titled Tuesday Blitz"]
[Site "Chess.com"]
[Date "2020.10.27"]
[Round "11"]
[White "Funo09"]
[Black "esapunov"]
[Result "1-0"]
[WhiteElo "2814"]
[BlackElo "2690"]
[TimeControl "180+1"]
[EndTime "12:05:23 PDT"]
[Termination "Funo09 won by resignation"]

1. e4 {[%clk 0:03:00.9]} 1... c5 {[%clk 0:02:59.8]} 2. Nc3 {[%clk 0:03:01.1]}
2... Nc6 {[%clk 0:02:59.7]} 3. Bb5 {[%clk 0:03:01.7]} 3... Nd4 {[%clk
0:02:58.6]} 4. Bc4 {[%clk 0:03:02.2]} 4... g6 {[%clk 0:02:54.3]} 5. Nf3 {[%clk
0:03:02.7]} 5... Bg7 {[%clk 0:02:54.9]} 6. Nxd4 {[%clk 0:03:03.4]} 6... cxd4
{[%clk 0:02:55.4]} 7. Qf3 {[%clk 0:03:04.3]} 7... Nh6 {[%clk 0:02:55.8]} 8. Ne2
{[%clk 0:03:03.5]} 8... O-O {[%clk 0:02:55.3]} 9. d3 {[%clk 0:03:03.6]} 9... Ng4
{[%clk 0:02:54]} 10. Qg3 {[%clk 0:03:04.2]} 10... d6 {[%clk 0:02:53.4]} 11. Bb3
{[%clk 0:02:58.9]} 11... a5 {[%clk 0:02:48.6]} 12. a4 {[%clk 0:02:58.6]} 12...
Bd7 {[%clk 0:02:46.6]} 13. O-O {[%clk 0:02:44.5]} 13... b5 {[%clk 0:02:44.3]}
14. axb5 {[%clk 0:02:42.8]} 14... Nf6 {[%clk 0:02:42.2]} 15. Nxd4 {[%clk
0:02:34.9]} 15... Nxe4 {[%clk 0:02:40.7]} 16. dxe4 {[%clk 0:02:32.3]} 16... Bxd4
{[%clk 0:02:40.5]} 17. Qd3 {[%clk 0:02:07.8]} 17... Qb6 {[%clk 0:02:37.1]} 18.
c4 {[%clk 0:02:05.9]} 18... Be6 {[%clk 0:02:27]} 19. Rb1 {[%clk 0:01:41.6]}
19... a4 {[%clk 0:02:24.8]} 20. Ba2 {[%clk 0:01:39.5]} 20... Rfc8 {[%clk
0:02:17.7]} 21. Bg5 {[%clk 0:01:12.9]} 21... Rc7 {[%clk 0:02:12.7]} 22. Rfc1
{[%clk 0:01:06.9]} 22... Bxf2+ {[%clk 0:02:11.4]} 23. Kh1 {[%clk 0:01:07.1]}
23... Bd4 {[%clk 0:02:11.2]} 24. Rc2 {[%clk 0:01:05.7]} 24... Rac8 {[%clk
0:02:08.7]} 25. Rd1 {[%clk 0:01:03.7]} 25... Be5 {[%clk 0:02:03.7]} 26. Be3
{[%clk 0:01:02.9]} 26... Qa5 {[%clk 0:02:02.4]} 27. Bd2 {[%clk 0:00:55.9]} 27...
Qa8 {[%clk 0:01:58.1]} 28. Be3 {[%clk 0:00:51.6]} 28... Rc5 {[%clk 0:01:50.4]}
29. Rf1 {[%clk 0:00:46]} 29... R8c7 {[%clk 0:01:46.4]} 30. b4 {[%clk 0:00:45.5]}
30... axb3 {[%clk 0:01:45.9]} 31. Bxb3 {[%clk 0:00:46.2]} 31... Qc8 {[%clk
0:01:44.3]} 32. Bxc5 {[%clk 0:00:45.3]} 32... Rxc5 {[%clk 0:01:42.2]} 33. Qe2
{[%clk 0:00:44.3]} 33... Kg7 {[%clk 0:01:40.3]} 34. Rb1 {[%clk 0:00:42.2]} 34...
Qc7 {[%clk 0:01:39.1]} 35. Ra2 {[%clk 0:00:41.9]} 35... Bxc4 {[%clk 0:01:32.8]}
36. Bxc4 {[%clk 0:00:41.1]} 36... Rxc4 {[%clk 0:01:33.3]} 37. Qf1 {[%clk
0:00:38.1]} 37... Qc5 {[%clk 0:01:27.2]} 38. b6 {[%clk 0:00:36.6]} 38... Rb4
{[%clk 0:01:27.5]} 39. b7 {[%clk 0:00:30.5]} 39... d5 {[%clk 0:01:27.8]} 40.
exd5 {[%clk 0:00:26.8]} 40... Rxb1 {[%clk 0:01:25.7]} 41. Qxb1 {[%clk
0:00:27.7]} 41... Qxd5 {[%clk 0:01:25.5]} 42. Re2 {[%clk 0:00:26.8]} 42... Bd6
{[%clk 0:01:22.6]} 43. Rxe7 {[%clk 0:00:24.9]} 43... Qh5 {[%clk 0:01:14.6]} 44.
h3 {[%clk 0:00:24.8]} 44... Qg5 {[%clk 0:01:14.1]} 45. Re8 {[%clk 0:00:17.4]}
45... Qg3 {[%clk 0:01:12.1]} 46. Qg1 {[%clk 0:00:16.6]} 46... h5 {[%clk
0:01:09.5]} 47. Qd4+ {[%clk 0:00:15.4]} 47... Kh6 {[%clk 0:01:08]} 48. Qxd6
{[%clk 0:00:11.4]} 48... Qxd6 {[%clk 0:01:04.9]} 49. b8=Q {[%clk 0:00:11.8]} 1-0

[Event "*** Titled Tuesday Blitz"]
[Site "Chess.com"]
[Date "2020.10.27"]
[Round "11"]
[White "Margarita2907"]
[Black "indfraeng"]
[Result "1/2-1/2"]
[WhiteElo "2206"]
[BlackElo "2338"]
[TimeControl "180+1"]
[EndTime "12:05:26 PDT"]
[Termination "Game drawn by repetition"]

1. e4 {[%clk 0:03:00.9]} 1... e5 {[%clk 0:03:00.2]} 2. Nf3 {[%clk 0:03:00.7]}
2... Nc6 {[%clk 0:03:00.7]} 3. Bc4 {[%clk 0:03:00.1]} 3... Bc5 {[%clk 0:03:00]}
4. d3 {[%clk 0:02:58.6]} 4... Nf6 {[%clk 0:02:59.4]} 5. O-O {[%clk 0:02:58.3]}
5... h6 {[%clk 0:02:59.1]} 6. c3 {[%clk 0:02:56]} 6... d6 {[%clk 0:02:58.7]} 7.
Nbd2 {[%clk 0:02:52.3]} 7... a5 {[%clk 0:02:58.4]} 8. a4 {[%clk 0:02:49.9]} 8...
O-O {[%clk 0:02:57]} 9. h3 {[%clk 0:02:48.3]} 9... Be6 {[%clk 0:02:55.4]} 10.
Re1 {[%clk 0:02:46]} 10... Re8 {[%clk 0:02:43.7]} 11. Qc2 {[%clk 0:02:35.5]}
11... Bxc4 {[%clk 0:02:23.1]} 12. Nxc4 {[%clk 0:02:34.7]} 12... d5 {[%clk
0:02:24]} 13. exd5 {[%clk 0:02:28.5]} 13... Qxd5 {[%clk 0:02:24.9]} 14. Be3
{[%clk 0:02:24.4]} 14... e4 {[%clk 0:02:21.5]} 15. Bxc5 {[%clk 0:01:45.4]} 15...
exd3 {[%clk 0:02:20]} 16. Qd2 {[%clk 0:01:36.6]} 16... Qxc4 {[%clk 0:02:07.1]}
17. Be3 {[%clk 0:01:32.9]} 17... Ne4 {[%clk 0:02:05.3]} 18. Qd1 {[%clk
0:01:27.9]} 18... Rad8 {[%clk 0:02:03.7]} 19. Nd2 {[%clk 0:01:27.3]} 19... Nxd2
{[%clk 0:02:03.8]} 20. Qxd2 {[%clk 0:01:28.2]} 20... Ne5 {[%clk 0:01:47]} 21.
Bd4 {[%clk 0:01:23]} 21... Nc6 {[%clk 0:01:46.2]} 22. Rxe8+ {[%clk 0:01:18.2]}
22... Rxe8 {[%clk 0:01:47.1]} 23. Be3 {[%clk 0:01:18]} 23... f5 {[%clk
0:01:40.9]} 24. Re1 {[%clk 0:01:02.8]} 24... f4 {[%clk 0:01:38.7]} 25. Bd4
{[%clk 0:00:57.9]} 25... Rxe1+ {[%clk 0:01:08.7]} 26. Qxe1 {[%clk 0:00:58.8]}
26... Nxd4 {[%clk 0:00:28.9]} 27. Qe8+ {[%clk 0:00:44.6]} 27... Kh7 {[%clk
0:00:29]} 28. Qe4+ {[%clk 0:00:44.3]} 28... Kh8 {[%clk 0:00:29.6]} 29. cxd4
{[%clk 0:00:36]} 29... c6 {[%clk 0:00:15.3]} 30. Qe8+ {[%clk 0:00:34.1]} 30...
Qg8 {[%clk 0:00:15.9]} 31. Qe4 {[%clk 0:00:30.5]} 31... Qc4 {[%clk 0:00:16]} 32.
Qe8+ {[%clk 0:00:30.2]} 32... Qg8 {[%clk 0:00:09.2]} 33. Qe4 {[%clk 0:00:30.5]}
33... Qc4 {[%clk 0:00:02.4]} 1/2-1/2

[Event "*** Titled Tuesday Blitz"]
[Site "Chess.com"]
[Date "2020.10.27"]
[Round "11"]
[White "Resignify"]
[Black "gagtemp"]
[Result "1-0"]
[WhiteElo "2185"]
[BlackElo "1957"]
[TimeControl "180+1"]
[EndTime "12:05:28 PDT"]
[Termination "Resignify won by checkmate"]

1. e4 {[%clk 0:03:00.9]} 1... e6 {[%clk 0:02:58.2]} 2. d3 {[%clk 0:02:59.1]}
2... d5 {[%clk 0:02:58.2]} 3. Nd2 {[%clk 0:02:59.7]} 3... Nc6 {[%clk 0:02:56]}
4. g3 {[%clk 0:02:58.8]} 4... g6 {[%clk 0:02:55.5]} 5. Bg2 {[%clk 0:02:59.1]}
5... Bg7 {[%clk 0:02:53.5]} 6. Ngf3 {[%clk 0:02:55.6]} 6... Nge7 {[%clk
0:02:53.3]} 7. O-O {[%clk 0:02:55.6]} 7... O-O {[%clk 0:02:53.1]} 8. c3 {[%clk
0:02:55.2]} 8... f5 {[%clk 0:02:51.3]} 9. Re1 {[%clk 0:02:45.4]} 9... f4 {[%clk
0:02:45]} 10. d4 {[%clk 0:02:34.9]} 10... fxg3 {[%clk 0:02:42.1]} 11. fxg3
{[%clk 0:02:28.5]} 11... dxe4 {[%clk 0:02:35.5]} 12. Nxe4 {[%clk 0:02:29.4]}
12... Nf5 {[%clk 0:02:26]} 13. Bg5 {[%clk 0:02:15.2]} 13... Qe8 {[%clk
0:02:22.6]} 14. Nc5 {[%clk 0:01:49.8]} 14... Qf7 {[%clk 0:02:09.2]} 15. Bf4
{[%clk 0:01:32.6]} 15... h6 {[%clk 0:01:58.1]} 16. Qb3 {[%clk 0:01:18.4]} 16...
g5 {[%clk 0:01:51.1]} 17. Be5 {[%clk 0:01:08.5]} 17... Nxe5 {[%clk 0:01:44.7]}
18. Nxe5 {[%clk 0:01:07.4]} 18... Bxe5 {[%clk 0:01:43.6]} 19. Rxe5 {[%clk
0:01:06.3]} 19... Ne3 {[%clk 0:01:35]} 20. Be4 {[%clk 0:00:20.2]} 20... Qf2+
{[%clk 0:01:31.6]} 21. Kh1 {[%clk 0:00:20.1]} 21... Ng4 {[%clk 0:01:21.2]} 22.
Qc2 {[%clk 0:00:15.4]} 22... Qe3 {[%clk 0:01:16.6]} 23. Bh7+ {[%clk 0:00:12.8]}
23... Kh8 {[%clk 0:01:15.2]} 24. Rxe3 {[%clk 0:00:12.8]} 24... Rf2 {[%clk
0:01:12.9]} 25. Qxf2 {[%clk 0:00:11.7]} 25... Nxf2+ {[%clk 0:01:12.8]} 26. Kg2
{[%clk 0:00:11.8]} 26... Ng4 {[%clk 0:01:06.5]} 27. Re4 {[%clk 0:00:08.9]} 27...
Nf6 {[%clk 0:01:06.2]} 28. Re5 {[%clk 0:00:09]} 28... Nxh7 {[%clk 0:01:05.9]}
29. Rf1 {[%clk 0:00:06.8]} 29... Kg7 {[%clk 0:01:04.3]} 30. Nxe6+ {[%clk
0:00:06.6]} 30... Bxe6 {[%clk 0:01:03.4]} 31. Rxe6 {[%clk 0:00:07.5]} 31... Rd8
{[%clk 0:00:54]} 32. Re7+ {[%clk 0:00:07.3]} 32... Kg6 {[%clk 0:00:53.6]} 33.
Rxc7 {[%clk 0:00:03.9]} 33... Nf6 {[%clk 0:00:47.7]} 34. Rxf6+ {[%clk
0:00:03.7]} 34... Kxf6 {[%clk 0:00:47.2]} 35. Rxb7 {[%clk 0:00:04.3]} 35... Re8
{[%clk 0:00:47.8]} 36. Kf2 {[%clk 0:00:03.6]} 36... a5 {[%clk 0:00:46.9]} 37.
Rb6+ {[%clk 0:00:02.5]} 37... Kf5 {[%clk 0:00:46.4]} 38. Rb5+ {[%clk 0:00:02.6]}
38... Kg4 {[%clk 0:00:45.6]} 39. Rxa5 {[%clk 0:00:02.5]} 39... Kh3 {[%clk
0:00:45.6]} 40. Ra6 {[%clk 0:00:02.4]} 40... Kxh2 {[%clk 0:00:45.7]} 41. Rxh6#
{[%clk 0:00:02.4]} 1-0

[Event "*** Titled Tuesday Blitz"]
[Site "Chess.com"]
[Date "2020.10.27"]
[Round "11"]
[White "FMJoseHerrera"]
[Black "XDPS"]
[Result "0-1"]
[WhiteElo "2563"]
[BlackElo "2736"]
[TimeControl "180+1"]
[EndTime "12:05:29 PDT"]
[Termination "XDPS won by checkmate"]

1. Nf3 {[%clk 0:02:52.6]} 1... Nf6 {[%clk 0:02:57.8]} 2. g3 {[%clk 0:02:52.5]}
2... g6 {[%clk 0:02:58.2]} 3. Bg2 {[%clk 0:02:53.4]} 3... Bg7 {[%clk 0:02:59]}
4. d3 {[%clk 0:02:53.9]} 4... O-O {[%clk 0:02:59.9]} 5. Nc3 {[%clk 0:02:54.8]}
5... Nc6 {[%clk 0:02:55.7]} 6. h4 {[%clk 0:02:54.8]} 6... d5 {[%clk 0:02:53.8]}
7. h5 {[%clk 0:02:54.7]} 7... Nxh5 {[%clk 0:02:53.5]} 8. Bg5 {[%clk 0:02:54.9]}
8... d4 {[%clk 0:02:44.7]} 9. Nb1 {[%clk 0:02:54.3]} 9... Qd6 {[%clk 0:02:13.1]}
10. Qd2 {[%clk 0:02:52.9]} 10... e5 {[%clk 0:02:12]} 11. Bh6 {[%clk 0:02:52.7]}
11... f5 {[%clk 0:02:10.7]} 12. Bxg7 {[%clk 0:02:52.3]} 12... Kxg7 {[%clk
0:02:10.7]} 13. Na3 {[%clk 0:02:16.9]} 13... Be6 {[%clk 0:02:09.8]} 14. Nb5
{[%clk 0:02:11]} 14... Qe7 {[%clk 0:02:05.1]} 15. Qg5 {[%clk 0:02:02.7]} 15...
Qb4+ {[%clk 0:00:56]} 16. c3 {[%clk 0:01:20.9]} 16... Qxb2 {[%clk 0:00:55.6]}
17. Rxh5 {[%clk 0:01:20.4]} 17... Qxa1+ {[%clk 0:00:55.2]} 18. Kd2 {[%clk
0:01:19.5]} 18... Qxa2+ {[%clk 0:00:45.2]} 19. Kc1 {[%clk 0:00:56.7]} 19... Qa1+
{[%clk 0:00:20.6]} 20. Kc2 {[%clk 0:00:56.3]} 20... Bg8 {[%clk 0:00:07.7]} 21.
Qh6+ {[%clk 0:00:38]} 21... Kh8 {[%clk 0:00:07.7]} 22. Qxg6 {[%clk 0:00:30.9]}
22... Qa4+ {[%clk 0:00:07.3]} 23. Kc1 {[%clk 0:00:28.9]} 23... Qa1+ {[%clk
0:00:06.7]} 24. Kc2 {[%clk 0:00:28.7]} 24... dxc3 {[%clk 0:00:06.5]} 25. Nxc3
{[%clk 0:00:27.2]} 25... Nb4+ {[%clk 0:00:06.3]} 26. Kd2 {[%clk 0:00:26.8]}
26... Qb2+ {[%clk 0:00:06.7]} 27. Ke3 {[%clk 0:00:17.4]} 27... f4+ {[%clk
0:00:06.8]} 28. Ke4 {[%clk 0:00:14.8]} 28... Qxc3 {[%clk 0:00:05.6]} 29. Ng5
{[%clk 0:00:13.4]} 29... Bd5# {[%clk 0:00:05.2]} 0-1

[Event "*** Titled Tuesday Blitz"]
[Site "Chess.com"]
[Date "2020.10.27"]
[Round "11"]
[White "Grandmaster2B"]
[Black "ural58"]
[Result "1-0"]
[WhiteElo "2493"]
[BlackElo "2355"]
[TimeControl "180+1"]
[EndTime "12:05:29 PDT"]
[Termination "Grandmaster2B won by resignation"]

1. e4 {[%clk 0:03:00.9]} 1... d5 {[%clk 0:02:59.6]} 2. exd5 {[%clk 0:03:00.8]}
2... Qxd5 {[%clk 0:02:59.5]} 3. Nc3 {[%clk 0:03:01]} 3... Qa5 {[%clk 0:02:59.5]}
4. d4 {[%clk 0:03:01.1]} 4... Nf6 {[%clk 0:02:59.3]} 5. Nf3 {[%clk 0:03:01.5]}
5... Nc6 {[%clk 0:02:59.2]} 6. Bd2 {[%clk 0:02:59.2]} 6... a6 {[%clk 0:02:58.8]}
7. Bc4 {[%clk 0:02:59.3]} 7... Qh5 {[%clk 0:02:58.4]} 8. O-O {[%clk 0:02:39.5]}
8... Bg4 {[%clk 0:02:55.7]} 9. Be2 {[%clk 0:02:34.8]} 9... Rd8 {[%clk
0:02:50.4]} 10. h3 {[%clk 0:02:27.4]} 10... Bxf3 {[%clk 0:02:50.5]} 11. Bxf3
{[%clk 0:02:28.3]} 11... Qf5 {[%clk 0:02:51]} 12. Be3 {[%clk 0:02:25.4]} 12...
e6 {[%clk 0:02:48.1]} 13. Bxc6+ {[%clk 0:02:18.8]} 13... bxc6 {[%clk 0:02:47.9]}
14. Qe2 {[%clk 0:02:15]} 14... Bb4 {[%clk 0:02:38.3]} 15. Qxa6 {[%clk 0:02:05]}
15... O-O {[%clk 0:02:37.9]} 16. Qxc6 {[%clk 0:02:02.8]} 16... Qxc2 {[%clk
0:02:36.6]} 17. a3 {[%clk 0:01:32.4]} 17... Bxc3 {[%clk 0:02:34.5]} 18. Qxc3
{[%clk 0:01:33.3]} 18... Qxc3 {[%clk 0:02:32.4]} 19. bxc3 {[%clk 0:01:34.2]}
19... Ra8 {[%clk 0:02:32.3]} 20. Rfb1 {[%clk 0:01:28.1]} 20... Ra4 {[%clk
0:02:29.9]} 21. Rb7 {[%clk 0:01:15.8]} 21... Nd5 {[%clk 0:02:28.8]} 22. Bd2
{[%clk 0:01:16.1]} 22... Rfa8 {[%clk 0:02:26]} 23. Rab1 {[%clk 0:01:15.6]} 23...
Kf8 {[%clk 0:02:22.1]} 24. Kf1 {[%clk 0:01:14]} 24... Ke7 {[%clk 0:02:21.1]} 25.
Ke2 {[%clk 0:01:10.2]} 25... Kd7 {[%clk 0:02:15.9]} 26. R1b3 {[%clk 0:00:49.9]}
26... h6 {[%clk 0:02:12.2]} 27. Bc1 {[%clk 0:00:43]} 27... R8a6 {[%clk
0:02:07.1]} 28. Kd3 {[%clk 0:00:32.3]} 28... Rc6 {[%clk 0:02:06.7]} 29. g3
{[%clk 0:00:29.6]} 29... Nb6 {[%clk 0:02:00.1]} 30. Rb4 {[%clk 0:00:22.2]} 30...
Ra8 {[%clk 0:01:53.3]} 31. Bf4 {[%clk 0:00:07]} 31... Nd5 {[%clk 0:01:45.5]} 32.
Rb3 {[%clk 0:00:05.1]} 32... g5 {[%clk 0:01:35.9]} 33. Bd2 {[%clk 0:00:04.6]}
33... Nb6 {[%clk 0:01:35.7]} 34. c4 {[%clk 0:00:02.8]} 34... Kc8 {[%clk
0:01:31.7]} 35. R7xb6 {[%clk 0:00:03]} 35... Rxb6 {[%clk 0:01:31.6]} 36. Bb4
{[%clk 0:00:03.9]} 36... Kd7 {[%clk 0:01:28.5]} 37. c5 {[%clk 0:00:04.2]} 37...
Rba6 {[%clk 0:01:28.3]} 38. Kc4 {[%clk 0:00:05.1]} 38... Kc6 {[%clk 0:01:28.6]}
39. Rf3 {[%clk 0:00:05]} 39... Rf8 {[%clk 0:01:27.6]} 40. Rf6 {[%clk 0:00:05.5]}
40... h5 {[%clk 0:01:23.9]} 41. d5+ {[%clk 0:00:05.8]} 41... Kd7 {[%clk
0:01:12.1]} 42. c6+ {[%clk 0:00:06.7]} 42... Ke8 {[%clk 0:01:11.9]} 43. Bxf8
{[%clk 0:00:05.7]} 43... Kxf8 {[%clk 0:01:12.4]} 44. dxe6 {[%clk 0:00:05.6]}
44... Rxc6+ {[%clk 0:01:12.6]} 45. Kd5 {[%clk 0:00:05.5]} 45... Rd6+ {[%clk
0:01:12.7]} 46. Ke5 {[%clk 0:00:06.1]} 46... Ra6 {[%clk 0:00:58.5]} 47. e7+
{[%clk 0:00:05.8]} 1-0

[Event "*** Titled Tuesday Blitz"]
[Site "Chess.com"]
[Date "2020.10.27"]
[Round "11"]
[White "JozefKneht"]
[Black "Yashasd1995"]
[Result "0-1"]
[WhiteElo "2423"]
[BlackElo "2554"]
[TimeControl "180+1"]
[EndTime "12:05:30 PDT"]
[Termination "Yashasd1995 won by resignation"]

1. Nf3 {[%clk 0:03:00.9]} 1... Nf6 {[%clk 0:02:57.7]} 2. c4 {[%clk 0:03:00.2]}
2... e6 {[%clk 0:02:57.5]} 3. g3 {[%clk 0:03:00.1]} 3... d5 {[%clk 0:02:58]} 4.
b3 {[%clk 0:03:00.1]} 4... Be7 {[%clk 0:02:58.2]} 5. Bg2 {[%clk 0:03:00.5]} 5...
O-O {[%clk 0:02:58.7]} 6. O-O {[%clk 0:03:00.5]} 6... Nbd7 {[%clk 0:02:58.9]} 7.
Bb2 {[%clk 0:03:00.1]} 7... c6 {[%clk 0:02:57.9]} 8. d3 {[%clk 0:02:47.2]} 8...
a5 {[%clk 0:02:57.2]} 9. a3 {[%clk 0:02:46.6]} 9... b6 {[%clk 0:02:57]} 10. Nbd2
{[%clk 0:02:46.3]} 10... Bb7 {[%clk 0:02:52.8]} 11. Qc2 {[%clk 0:02:44.6]} 11...
Rc8 {[%clk 0:02:52.4]} 12. e4 {[%clk 0:02:40.9]} 12... c5 {[%clk 0:02:50]} 13.
cxd5 {[%clk 0:02:31]} 13... exd5 {[%clk 0:02:50.9]} 14. Rfe1 {[%clk 0:02:21.3]}
14... d4 {[%clk 0:02:49.7]} 15. a4 {[%clk 0:02:20.7]} 15... Re8 {[%clk
0:02:42.1]} 16. Nc4 {[%clk 0:02:18.3]} 16... Bf8 {[%clk 0:02:41.6]} 17. Nfd2
{[%clk 0:02:17]} 17... Nb8 {[%clk 0:02:37.4]} 18. f4 {[%clk 0:02:09.3]} 18... g6
{[%clk 0:02:26.9]} 19. h3 {[%clk 0:02:01]} 19... Nh5 {[%clk 0:02:18.9]} 20. Kh2
{[%clk 0:01:57.4]} 20... Bh6 {[%clk 0:02:18]} 21. Rf1 {[%clk 0:01:39]} 21... Qc7
{[%clk 0:02:11.5]} 22. Rae1 {[%clk 0:01:30]} 22... Nc6 {[%clk 0:02:08.4]} 23.
Ba3 {[%clk 0:01:28.5]} 23... Ne7 {[%clk 0:02:07.1]} 24. Qd1 {[%clk 0:01:23.8]}
24... f5 {[%clk 0:01:56.3]} 25. Ne5 {[%clk 0:01:09.5]} 25... Nxf4 {[%clk
0:01:43.1]} 26. gxf4 {[%clk 0:01:08.6]} 26... Bxf4+ {[%clk 0:01:43]} 27. Rxf4
{[%clk 0:01:04.7]} 27... Qxe5 {[%clk 0:01:43]} 28. Rf1 {[%clk 0:01:03.5]} 28...
g5 {[%clk 0:01:41.1]} 29. Nc4 {[%clk 0:01:01.6]} 29... Qc7 {[%clk 0:01:38.1]}
30. Bc1 {[%clk 0:00:48.2]} 30... Ng6 {[%clk 0:01:33.7]} 31. Qh5 {[%clk
0:00:41.6]} 31... gxf4 {[%clk 0:01:28.2]} 32. e5 {[%clk 0:00:26.1]} 32... Bxg2
{[%clk 0:01:20.3]} 33. Kxg2 {[%clk 0:00:26]} 33... Rxe5 {[%clk 0:00:57.8]} 34.
Nxe5 {[%clk 0:00:22.9]} 34... Qxe5 {[%clk 0:00:58.7]} 35. Qg5 {[%clk 0:00:20]}
35... Re8 {[%clk 0:00:54.3]} 36. Bxf4 {[%clk 0:00:19.1]} 36... Qe2+ {[%clk
0:00:52.8]} 37. Rf2 {[%clk 0:00:19.1]} 37... Qxd3 {[%clk 0:00:52.3]} 38. h4
{[%clk 0:00:17.9]} 38... Re2 {[%clk 0:00:50.2]} 39. h5 {[%clk 0:00:17.5]} 39...
Qe4+ {[%clk 0:00:43.3]} 40. Kg3 {[%clk 0:00:15.2]} 40... Rxf2 {[%clk 0:00:41.5]}
41. hxg6 {[%clk 0:00:13.9]} 41... Qf3+ {[%clk 0:00:35]} 0-1

[Event "*** Titled Tuesday Blitz"]
[Site "Chess.com"]
[Date "2020.10.27"]
[Round "11"]
[White "TokChess"]
[Black "suyu28"]
[Result "0-1"]
[WhiteElo "2451"]
[BlackElo "2614"]
[TimeControl "180+1"]
[EndTime "12:05:38 PDT"]
[Termination "suyu28 won by checkmate"]

1. c4 {[%clk 0:02:56.3]} 1... c6 {[%clk 0:02:59.6]} 2. Nf3 {[%clk 0:02:55]} 2...
d5 {[%clk 0:02:59.9]} 3. d4 {[%clk 0:02:55.1]} 3... e6 {[%clk 0:02:58.6]} 4. e3
{[%clk 0:02:55.1]} 4... Nf6 {[%clk 0:02:58.9]} 5. Nc3 {[%clk 0:02:53]} 5... Nbd7
{[%clk 0:02:58.2]} 6. Qc2 {[%clk 0:02:52.4]} 6... Bd6 {[%clk 0:02:58.1]} 7. g4
{[%clk 0:02:51.4]} 7... h6 {[%clk 0:02:52.7]} 8. Bd2 {[%clk 0:02:38.6]} 8... a6
{[%clk 0:02:47.5]} 9. h4 {[%clk 0:02:11]} 9... e5 {[%clk 0:02:45.2]} 10. cxd5
{[%clk 0:02:05.3]} 10... cxd5 {[%clk 0:02:44.1]} 11. g5 {[%clk 0:01:48.5]} 11...
hxg5 {[%clk 0:02:41.6]} 12. Nxg5 {[%clk 0:01:47.5]} 12... e4 {[%clk 0:02:42]}
13. Nxd5 {[%clk 0:01:36.6]} 13... Nxd5 {[%clk 0:02:37.9]} 14. Qxe4+ {[%clk
0:01:36.8]} 14... Ne7 {[%clk 0:02:38.4]} 15. Bc4 {[%clk 0:01:36.8]} 15... Rf8
{[%clk 0:02:33]} 16. Nh7 {[%clk 0:01:19.6]} 16... Rh8 {[%clk 0:02:21.9]} 17. Ng5
{[%clk 0:01:19.5]} 17... Rf8 {[%clk 0:02:21.3]} 18. Qh7 {[%clk 0:00:47.7]} 18...
b5 {[%clk 0:02:12.5]} 19. Bb3 {[%clk 0:00:35.3]} 19... Nc6 {[%clk 0:01:24.1]}
20. Qxg7 {[%clk 0:00:33.2]} 20... Qf6 {[%clk 0:01:24.3]} 21. Qh7 {[%clk
0:00:30.2]} 21... Bb7 {[%clk 0:01:14.8]} 22. Ne4 {[%clk 0:00:26.4]} 22... Qe7
{[%clk 0:01:13.2]} 23. Nxd6+ {[%clk 0:00:25.2]} 23... Qxd6 {[%clk 0:01:14.1]}
24. Qe4+ {[%clk 0:00:20.8]} 24... Kd8 {[%clk 0:01:12.3]} 25. Qf5 {[%clk
0:00:19.4]} 25... Nxd4 {[%clk 0:01:07.1]} 26. exd4 {[%clk 0:00:19.7]} 26... Bxh1
{[%clk 0:01:06.8]} 27. Bf4 {[%clk 0:00:19.2]} 27... Re8+ {[%clk 0:01:00.2]} 28.
Kf1 {[%clk 0:00:19.4]} 28... Qc6 {[%clk 0:00:59.2]} 29. d5 {[%clk 0:00:14.1]}
29... Qg6 {[%clk 0:00:58.9]} 30. Bg5+ {[%clk 0:00:12.2]} 30... Kc8 {[%clk
0:00:54.1]} 31. Qf4 {[%clk 0:00:10.4]} 31... Kb7 {[%clk 0:00:40.9]} 32. h5
{[%clk 0:00:06.5]} 32... Qd3+ {[%clk 0:00:38.5]} 33. Kg1 {[%clk 0:00:05.9]}
33... Re4 {[%clk 0:00:27.7]} 34. Qxf7 {[%clk 0:00:03.8]} 34... Rg4+ {[%clk
0:00:27.4]} 35. Kh2 {[%clk 0:00:04.3]} 35... Rg2+ {[%clk 0:00:26.5]} 36. Kxh1
{[%clk 0:00:04.7]} 36... Qh3# {[%clk 0:00:26.7]} 0-1